[Event "*** Titled Tuesday Blitz"]
[Site "Chess.com"]
[Date "2021.03.02"]
[Round "6"]
[White "blitis"]
[Black "Chernobay_Artem"]
[Result "1-0"]
[WhiteElo "2515"]
[BlackElo "2607"]
[TimeControl "180+1"]
[EndTime "11:07:09 PST"]
[Termination "blitis won on time"]

1. e4 {[%clk 0:03:00.9]} 1... e6 {[%clk 0:02:59.8]} 2. d4 {[%clk 0:03:00.5]}
2... d5 {[%clk 0:03:00.3]} 3. exd5 {[%clk 0:03:01.4]} 3... exd5 {[%clk
0:02:58.9]} 4. Qf3 {[%clk 0:03:01.9]} 4... Nf6 {[%clk 0:02:49.6]} 5. h3 {[%clk
0:03:01.6]} 5... Nc6 {[%clk 0:02:33.6]} 6. c3 {[%clk 0:02:59.7]} 6... Ne7 {[%clk
0:02:30.3]} 7. Bd3 {[%clk 0:02:54.5]} 7... Ng6 {[%clk 0:02:29.1]} 8. Bg5 {[%clk
0:02:52.6]} 8... Be7 {[%clk 0:02:28.9]} 9. Ne2 {[%clk 0:02:50.4]} 9... O-O
{[%clk 0:02:25.9]} 10. O-O {[%clk 0:02:33.3]} 10... h6 {[%clk 0:02:18.9]} 11.
Bxf6 {[%clk 0:02:00.3]} 11... Bxf6 {[%clk 0:02:17.2]} 12. Bxg6 {[%clk
0:02:00.5]} 12... fxg6 {[%clk 0:02:14.2]} 13. Nf4 {[%clk 0:02:00.6]} 13... c6
{[%clk 0:01:58.8]} 14. Nxg6 {[%clk 0:01:59.6]} 14... Rf7 {[%clk 0:01:59.4]} 15.
Qg3 {[%clk 0:01:49.6]} 15... Bf5 {[%clk 0:01:55.5]} 16. Nd2 {[%clk 0:01:43]}
16... Qb6 {[%clk 0:00:54.4]} 17. b4 {[%clk 0:01:26.5]} 17... a5 {[%clk
0:00:49.1]} 18. a3 {[%clk 0:01:25.4]} 18... Qb5 {[%clk 0:00:42]} 19. Nf3 {[%clk
0:01:15.4]} 19... Qd3 {[%clk 0:00:35.7]} 20. Nfe5 {[%clk 0:01:15.4]} 20... Qxg3
{[%clk 0:00:30.4]} 21. fxg3 {[%clk 0:01:16.3]} 21... Bxg6 {[%clk 0:00:30.5]} 22.
Nxg6 {[%clk 0:01:13.9]} 22... b5 {[%clk 0:00:27.6]} 23. Nf4 {[%clk 0:01:00.7]}
23... Rfa7 {[%clk 0:00:22.5]} 24. Rae1 {[%clk 0:00:48.7]} 24... axb4 {[%clk
0:00:22]} 25. axb4 {[%clk 0:00:49.6]} 25... Ra3 {[%clk 0:00:20.9]} 26. Rf3
{[%clk 0:00:49.8]} 26... Rb3 {[%clk 0:00:20.5]} 27. Nh5 {[%clk 0:00:42.5]} 27...
Bg5 {[%clk 0:00:17.7]} 28. h4 {[%clk 0:00:37]} 28... Bd2 {[%clk 0:00:17.1]} 29.
Re7 {[%clk 0:00:37]} 29... Bxc3 {[%clk 0:00:16]} 30. Rxg7+ {[%clk 0:00:30.8]}
30... Kh8 {[%clk 0:00:16.3]} 31. Kh2 {[%clk 0:00:30.8]} 31... Rba3 {[%clk
0:00:12]} 32. Rf4 {[%clk 0:00:16.9]} 32... Bxb4 {[%clk 0:00:08.3]} 33. Rff7
{[%clk 0:00:14.2]} 1-0

[Event "*** Titled Tuesday Blitz"]
[Site "Chess.com"]
[Date "2021.03.02"]
[Round "6"]
[White "Coiote53"]
[Black "elcandado"]
[Result "0-1"]
[WhiteElo "2360"]
[BlackElo "2609"]
[TimeControl "180+1"]
[EndTime "11:07:11 PST"]
[Termination "elcandado won by resignation"]

1. e4 {[%clk 0:03:00.9]} 1... e5 {[%clk 0:02:59.5]} 2. Nf3 {[%clk 0:03:00.1]}
2... Nc6 {[%clk 0:02:59.9]} 3. d4 {[%clk 0:03:00]} 3... exd4 {[%clk 0:02:59.3]}
4. Nxd4 {[%clk 0:03:00.9]} 4... Bc5 {[%clk 0:02:58.9]} 5. Nxc6 {[%clk
0:03:01.4]} 5... Qf6 {[%clk 0:02:57.2]} 6. Qf3 {[%clk 0:03:01.9]} 6... Qxf3
{[%clk 0:02:53]} 7. gxf3 {[%clk 0:03:00.6]} 7... dxc6 {[%clk 0:02:53.3]} 8. Nc3
{[%clk 0:02:59.2]} 8... Ne7 {[%clk 0:02:51.2]} 9. Be3 {[%clk 0:02:59.7]} 9...
Bd6 {[%clk 0:02:46.6]} 10. f4 {[%clk 0:02:58]} 10... f6 {[%clk 0:02:26.1]} 11.
Bc4 {[%clk 0:02:47.3]} 11... Ng6 {[%clk 0:02:20.3]} 12. Ne2 {[%clk 0:02:47]}
12... Bg4 {[%clk 0:02:18.6]} 13. Rg1 {[%clk 0:02:27.6]} 13... Bxe2 {[%clk
0:02:04.5]} 14. Kxe2 {[%clk 0:02:28.5]} 14... Nxf4+ {[%clk 0:01:52.8]} 15. Bxf4
{[%clk 0:02:28.4]} 15... Bxf4 {[%clk 0:01:53.1]} 16. Rxg7 {[%clk 0:02:26.1]}
16... O-O-O {[%clk 0:01:52.9]} 17. Rd1 {[%clk 0:02:07.8]} 17... Rxd1 {[%clk
0:01:48.7]} 18. Kxd1 {[%clk 0:02:08.7]} 18... Bxh2 {[%clk 0:01:47]} 19. Ke2
{[%clk 0:02:01.8]} 19... b5 {[%clk 0:01:38.4]} 20. Be6+ {[%clk 0:02:00.1]} 20...
Kb7 {[%clk 0:01:37.6]} 21. Bf5 {[%clk 0:01:59.2]} 21... h5 {[%clk 0:01:33.4]}
22. Ke3 {[%clk 0:01:56.5]} 22... Bd6 {[%clk 0:01:19.5]} 23. Rh7 {[%clk
0:01:50.6]} 23... Rxh7 {[%clk 0:01:11.3]} 24. Bxh7 {[%clk 0:01:51.5]} 24... Be5
{[%clk 0:01:05.1]} 25. b3 {[%clk 0:01:48.6]} 25... Kb6 {[%clk 0:01:02]} 26. f4
{[%clk 0:01:45.7]} 26... Bd6 {[%clk 0:01:00.5]} 27. Bf5 {[%clk 0:01:45]} 27...
a6 {[%clk 0:00:50.7]} 28. Bh3 {[%clk 0:01:44.7]} 28... Kc5 {[%clk 0:00:50.4]}
29. c3 {[%clk 0:01:44.3]} 29... Kb6 {[%clk 0:00:43.1]} 30. Bf1 {[%clk
0:01:43.2]} 30... Ba3 {[%clk 0:00:37.9]} 31. f5 {[%clk 0:01:42.4]} 31... Bb2
{[%clk 0:00:36.1]} 32. Kd3 {[%clk 0:01:40.7]} 32... Kc5 {[%clk 0:00:31]} 33. b4+
{[%clk 0:01:31.2]} 33... Kd6 {[%clk 0:00:29.1]} 34. c4 {[%clk 0:01:18.9]} 34...
c5 {[%clk 0:00:22.7]} 35. cxb5 {[%clk 0:01:15]} 35... axb5 {[%clk 0:00:21.2]}
36. Kc2 {[%clk 0:01:14.8]} 36... Ba1 {[%clk 0:00:13.7]} 37. bxc5+ {[%clk
0:01:09.3]} 37... Kxc5 {[%clk 0:00:13.3]} 38. Kd3 {[%clk 0:01:09.9]} 38... h4
{[%clk 0:00:12]} 39. Bg2 {[%clk 0:01:05.4]} 39... Be5 {[%clk 0:00:12.1]} 40. Bh3
{[%clk 0:01:03.6]} 40... Kb4 {[%clk 0:00:11.6]} 41. Kc2 {[%clk 0:01:03.7]} 41...
c6 {[%clk 0:00:09.8]} 42. Bf1 {[%clk 0:01:01.1]} 42... Ka3 {[%clk 0:00:08.5]}
43. Kb1 {[%clk 0:01:01.3]} 43... Ka4 {[%clk 0:00:08.3]} 44. Kc2 {[%clk
0:01:00.7]} 44... c5 {[%clk 0:00:08.6]} 45. Kc1 {[%clk 0:00:58.5]} 45... c4
{[%clk 0:00:08.8]} 46. Kc2 {[%clk 0:00:59]} 46... Kb4 {[%clk 0:00:08.9]} 47. Bg2
{[%clk 0:00:55.4]} 47... Kc5 {[%clk 0:00:08.6]} 48. Kd2 {[%clk 0:00:52.5]} 48...
Kd4 {[%clk 0:00:08.5]} 49. Ke2 {[%clk 0:00:50.5]} 49... Kc3 {[%clk 0:00:08.2]}
50. Kd1 {[%clk 0:00:50]} 50... Kb2 {[%clk 0:00:08]} 0-1

[Event "*** Titled Tuesday Blitz"]
[Site "Chess.com"]
[Date "2021.03.02"]
[Round "6"]
[White "Gogolev_Artemy"]
[Black "Szparu"]
[Result "0-1"]
[WhiteElo "2493"]
[BlackElo "2658"]
[TimeControl "180+1"]
[EndTime "11:07:13 PST"]
[Termination "Szparu won by checkmate"]

1. c4 {[%clk 0:02:17.1]} 1... c5 {[%clk 0:02:54.3]} 2. Nf3 {[%clk 0:02:16.5]}
2... Nf6 {[%clk 0:02:51.7]} 3. e3 {[%clk 0:02:15.6]} 3... g6 {[%clk 0:02:50.5]}
4. d4 {[%clk 0:02:15.6]} 4... Bg7 {[%clk 0:02:49.7]} 5. d5 {[%clk 0:02:14.4]}
5... O-O {[%clk 0:02:49.8]} 6. Nc3 {[%clk 0:02:15]} 6... e6 {[%clk 0:02:49.4]}
7. e4 {[%clk 0:02:13.3]} 7... exd5 {[%clk 0:02:49]} 8. cxd5 {[%clk 0:02:12.9]}
8... d6 {[%clk 0:02:46.6]} 9. Be2 {[%clk 0:02:11.7]} 9... b5 {[%clk 0:02:42.4]}
10. Bxb5 {[%clk 0:02:07.7]} 10... Nxe4 {[%clk 0:02:40.8]} 11. Nxe4 {[%clk
0:02:06.4]} 11... Qa5+ {[%clk 0:02:39.9]} 12. Nc3 {[%clk 0:02:01.6]} 12... Bxc3+
{[%clk 0:02:38.2]} 13. bxc3 {[%clk 0:02:02.5]} 13... Qxb5 {[%clk 0:02:38.4]} 14.
Qe2 {[%clk 0:01:57]} 14... Re8 {[%clk 0:02:26.1]} 15. Be3 {[%clk 0:01:57.2]}
15... Ba6 {[%clk 0:02:24.8]} 16. Qxb5 {[%clk 0:01:54.2]} 16... Bxb5 {[%clk
0:02:24.8]} 17. Kd2 {[%clk 0:01:49.2]} 17... Nd7 {[%clk 0:02:22]} 18. Bf4 {[%clk
0:01:40.2]} 18... Nb6 {[%clk 0:02:21]} 19. Rhe1 {[%clk 0:01:38.3]} 19... Red8
{[%clk 0:01:54.9]} 20. Rab1 {[%clk 0:01:21]} 20... Bc4 {[%clk 0:01:41.9]} 21. a4
{[%clk 0:01:18.5]} 21... Bxd5 {[%clk 0:01:40.2]} 22. a5 {[%clk 0:01:17.6]} 22...
Nc4+ {[%clk 0:01:39.5]} 23. Kd3 {[%clk 0:01:17.8]} 23... Nxa5 {[%clk 0:01:38.8]}
24. Ng5 {[%clk 0:01:15.8]} 24... Bc4+ {[%clk 0:00:57.4]} 25. Kc2 {[%clk
0:01:11.1]} 25... Re8 {[%clk 0:00:52.5]} 26. Bxd6 {[%clk 0:01:06.9]} 26... Red8
{[%clk 0:00:37.2]} 27. Red1 {[%clk 0:00:53.2]} 27... Rac8 {[%clk 0:00:30.6]} 28.
Rd2 {[%clk 0:00:23.6]} 28... h6 {[%clk 0:00:27.4]} 29. Ne4 {[%clk 0:00:23.6]}
29... Be6 {[%clk 0:00:27.8]} 30. Re1 {[%clk 0:00:12.9]} 30... Nc4 {[%clk
0:00:26.3]} 31. Rdd1 {[%clk 0:00:06.2]} 31... Bf5 {[%clk 0:00:26.5]} 32. Be7
{[%clk 0:00:05.3]} 32... Re8 {[%clk 0:00:20.6]} 33. Kc1 {[%clk 0:00:03.1]} 33...
Rxe7 {[%clk 0:00:20.4]} 34. Nf6+ {[%clk 0:00:01.9]} 34... Kf8 {[%clk 0:00:21.1]}
35. Nh7+ {[%clk 0:00:02.1]} 35... Kg7 {[%clk 0:00:21.8]} 36. Rxe7 {[%clk
0:00:01.9]} 36... Kxh7 {[%clk 0:00:22.6]} 37. Rxf7+ {[%clk 0:00:02.4]} 37... Kg8
{[%clk 0:00:23.2]} 38. Rxa7 {[%clk 0:00:02.7]} 38... Rb8 {[%clk 0:00:23.7]} 39.
Rd6 {[%clk 0:00:02.9]} 39... Rb1# {[%clk 0:00:23.7]} 0-1

[Event "*** Titled Tuesday Blitz"]
[Site "Chess.com"]
[Date "2021.03.02"]
[Round "6"]
[White "Atco84"]
[Black "DonPreuss"]
[Result "0-1"]
[WhiteElo "2413"]
[BlackElo "2304"]
[TimeControl "180+1"]
[EndTime "11:07:13 PST"]
[Termination "DonPreuss won by resignation"]

1. b3 {[%clk 0:03:00.9]} 1... Nc6 {[%clk 0:02:59.4]} 2. Bb2 {[%clk 0:03:01.8]}
2... e5 {[%clk 0:02:59.7]} 3. Nf3 {[%clk 0:03:02.2]} 3... d6 {[%clk 0:03:00]} 4.
c4 {[%clk 0:03:00]} 4... g6 {[%clk 0:02:59.7]} 5. e3 {[%clk 0:02:59]} 5... Bg7
{[%clk 0:02:59.9]} 6. d4 {[%clk 0:02:56.5]} 6... e4 {[%clk 0:02:54.4]} 7. Nfd2
{[%clk 0:02:56.6]} 7... f5 {[%clk 0:02:53.7]} 8. a3 {[%clk 0:02:50.4]} 8... Nge7
{[%clk 0:02:53.2]} 9. b4 {[%clk 0:02:45.8]} 9... O-O {[%clk 0:02:46.4]} 10. b5
{[%clk 0:02:43.7]} 10... Nb8 {[%clk 0:02:46]} 11. Nc3 {[%clk 0:02:41.2]} 11...
c6 {[%clk 0:02:43.1]} 12. a4 {[%clk 0:02:40.7]} 12... g5 {[%clk 0:02:35.9]} 13.
h4 {[%clk 0:02:37.6]} 13... g4 {[%clk 0:02:33.3]} 14. h5 {[%clk 0:02:33.2]}
14... g3 {[%clk 0:02:27.7]} 15. fxg3 {[%clk 0:02:30.6]} 15... Bh6 {[%clk
0:02:26.8]} 16. Qe2 {[%clk 0:02:25.8]} 16... d5 {[%clk 0:02:18.1]} 17. Ba3
{[%clk 0:02:11.2]} 17... Be6 {[%clk 0:02:16.1]} 18. cxd5 {[%clk 0:01:45.8]}
18... cxd5 {[%clk 0:02:14.1]} 19. Nb3 {[%clk 0:01:41.1]} 19... b6 {[%clk
0:02:09.7]} 20. O-O-O {[%clk 0:01:30]} 20... Kh8 {[%clk 0:02:05]} 21. Kb2 {[%clk
0:01:27.6]} 21... Rg8 {[%clk 0:02:04]} 22. Qf2 {[%clk 0:01:24.5]} 22... Nc8
{[%clk 0:01:53]} 23. Ne2 {[%clk 0:01:17]} 23... Nd6 {[%clk 0:01:50.6]} 24. Nf4
{[%clk 0:01:15.4]} 24... Bf7 {[%clk 0:01:48]} 25. Rc1 {[%clk 0:01:06.2]} 25...
a6 {[%clk 0:01:46.4]} 26. Bb4 {[%clk 0:00:48.9]} 26... axb5 {[%clk 0:01:44.5]}
27. axb5 {[%clk 0:00:49.8]} 27... Ra4 {[%clk 0:01:35.1]} 28. Be1 {[%clk
0:00:41.5]} 28... Qd7 {[%clk 0:01:32]} 29. Ra1 {[%clk 0:00:31.1]} 29... Rxa1
{[%clk 0:01:28.3]} 30. Kxa1 {[%clk 0:00:31.1]} 30... Nxb5 {[%clk 0:01:26.2]} 31.
Qa2 {[%clk 0:00:29.3]} 31... Nd6 {[%clk 0:01:09.4]} 32. Kb2 {[%clk 0:00:18.6]}
32... Nc6 {[%clk 0:01:04.3]} 33. Be2 {[%clk 0:00:18.9]} 33... Nc4+ {[%clk
0:00:52.9]} 34. Bxc4 {[%clk 0:00:19]} 34... dxc4 {[%clk 0:00:53.2]} 35. Qa4
{[%clk 0:00:17.5]} 35... cxb3 {[%clk 0:00:50.4]} 36. Bc3 {[%clk 0:00:17.8]}
36... Bg7 {[%clk 0:00:35.6]} 37. Ng6+ {[%clk 0:00:17.9]} 37... Bxg6 {[%clk
0:00:32.4]} 38. hxg6 {[%clk 0:00:18.8]} 38... h6 {[%clk 0:00:30.8]} 39. Qxb3
{[%clk 0:00:18.9]} 39... Na5 {[%clk 0:00:20.4]} 40. Qxb6 {[%clk 0:00:08.9]}
40... Nc4+ {[%clk 0:00:16.8]} 0-1

[Event "*** Titled Tuesday Blitz"]
[Site "Chess.com"]
[Date "2021.03.02"]
[Round "6"]
[White "AldokhinIvan"]
[Black "ARTHURMOTIVATOR"]
[Result "1-0"]
[WhiteElo "2516"]
[BlackElo "2342"]
[TimeControl "180+1"]
[EndTime "11:07:14 PST"]
[Termination "AldokhinIvan won by resignation"]

1. e4 {[%clk 0:03:00.9]} 1... e5 {[%clk 0:02:56.7]} 2. Nf3 {[%clk 0:03:00.9]}
2... Nc6 {[%clk 0:02:55.8]} 3. Bb5 {[%clk 0:03:01.3]} 3... a6 {[%clk 0:02:55]}
4. Ba4 {[%clk 0:03:01.7]} 4... d6 {[%clk 0:02:54]} 5. O-O {[%clk 0:03:02.1]}
5... Bd7 {[%clk 0:02:54.1]} 6. Re1 {[%clk 0:02:53.2]} 6... g6 {[%clk 0:02:53.1]}
7. Bxc6 {[%clk 0:02:50.8]} 7... bxc6 {[%clk 0:02:41.2]} 8. d4 {[%clk 0:02:51.7]}
8... exd4 {[%clk 0:02:38]} 9. Qxd4 {[%clk 0:02:50]} 9... f6 {[%clk 0:02:25.5]}
10. e5 {[%clk 0:02:49.8]} 10... fxe5 {[%clk 0:02:19]} 11. Nxe5 {[%clk
0:02:39.5]} 11... dxe5 {[%clk 0:02:09.7]} 12. Qxe5+ {[%clk 0:02:38.9]} 12... Kf7
{[%clk 0:01:38.5]} 13. Qxh8 {[%clk 0:02:33]} 13... Bg7 {[%clk 0:01:28.4]} 14.
Qxh7 {[%clk 0:02:32]} 14... Bg4 {[%clk 0:01:14.2]} 15. Nc3 {[%clk 0:02:13.1]}
15... Bf5 {[%clk 0:00:38]} 16. Bf4 {[%clk 0:02:07.2]} 16... Nf6 {[%clk
0:00:31.4]} 17. Qh4 {[%clk 0:02:05.7]} 17... Qd4 {[%clk 0:00:27.2]} 18. Bg3
{[%clk 0:01:49.3]} 18... Qxh4 {[%clk 0:00:21.2]} 19. Bxh4 {[%clk 0:01:49]} 19...
Rb8 {[%clk 0:00:22.1]} 20. Bg3 {[%clk 0:01:22.9]} 20... Rxb2 {[%clk 0:00:20.5]}
21. Na4 {[%clk 0:01:14.3]} 21... Rxc2 {[%clk 0:00:20]} 22. Rec1 {[%clk
0:01:14.3]} 22... Rd2 {[%clk 0:00:17.4]} 23. Rxc6 {[%clk 0:01:12.9]} 23... Ne4
{[%clk 0:00:14]} 24. Rxc7+ {[%clk 0:01:11.1]} 24... Kg8 {[%clk 0:00:13.2]} 25.
Rxg7+ {[%clk 0:01:05.1]} 25... Kxg7 {[%clk 0:00:12.3]} 26. Be5+ {[%clk
0:01:05.5]} 26... Kf7 {[%clk 0:00:12.6]} 27. f3 {[%clk 0:01:05.2]} 27... Nd6
{[%clk 0:00:08.5]} 28. Rc1 {[%clk 0:00:52.6]} 28... Nb5 {[%clk 0:00:07.8]} 29.
g4 {[%clk 0:00:41.8]} 29... Be6 {[%clk 0:00:06.8]} 30. Rc6 {[%clk 0:00:38.7]}
30... Bd5 {[%clk 0:00:06.5]} 31. Rf6+ {[%clk 0:00:37.7]} 31... Ke7 {[%clk
0:00:06.5]} 32. Nc5 {[%clk 0:00:32.5]} 32... Nd4 {[%clk 0:00:03.5]} 33. Bxd4
{[%clk 0:00:26.7]} 33... Rxd4 {[%clk 0:00:04.4]} 34. Rxa6 {[%clk 0:00:21.1]}
34... Bxf3 {[%clk 0:00:04.4]} 35. h3 {[%clk 0:00:19.7]} 35... Bxg4 {[%clk
0:00:03.7]} 36. hxg4 {[%clk 0:00:19]} 36... Rxg4+ {[%clk 0:00:04.6]} 37. Kf2
{[%clk 0:00:19.5]} 37... Rc4 {[%clk 0:00:05.5]} 38. Nd3 {[%clk 0:00:18.7]} 38...
Rc5 {[%clk 0:00:06.4]} 39. Nxc5 {[%clk 0:00:18.2]} 1-0

[Event "*** Titled Tuesday Blitz"]
[Site "Chess.com"]
[Date "2021.03.02"]
[Round "6"]
[White "Ghost_Pepper"]
[Black "StockholmMissile"]
[Result "0-1"]
[WhiteElo "2380"]
[BlackElo "2588"]
[TimeControl "180+1"]
[EndTime "11:07:16 PST"]
[Termination "StockholmMissile won by resignation"]

1. e4 {[%clk 0:03:00.9]} 1... e5 {[%clk 0:02:58.2]} 2. Nf3 {[%clk 0:02:58.8]}
2... Nc6 {[%clk 0:02:57.7]} 3. Bc4 {[%clk 0:02:59.2]} 3... Bc5 {[%clk
0:02:56.8]} 4. b4 {[%clk 0:02:59.3]} 4... Bxb4 {[%clk 0:02:56]} 5. c3 {[%clk
0:02:59.9]} 5... Ba5 {[%clk 0:02:56.3]} 6. d4 {[%clk 0:03:00.3]} 6... exd4
{[%clk 0:02:57.2]} 7. O-O {[%clk 0:02:59.4]} 7... Bxc3 {[%clk 0:02:28.2]} 8.
Nxc3 {[%clk 0:02:53.2]} 8... dxc3 {[%clk 0:02:29.1]} 9. Qb3 {[%clk 0:01:56.6]}
9... Qe7 {[%clk 0:02:24.7]} 10. Qxc3 {[%clk 0:01:49.7]} 10... Nf6 {[%clk
0:02:20.9]} 11. e5 {[%clk 0:01:45.5]} 11... Ne4 {[%clk 0:02:16.1]} 12. Qc2
{[%clk 0:01:09.6]} 12... Nc5 {[%clk 0:02:15]} 13. Bg5 {[%clk 0:01:04.2]} 13...
Nd4 {[%clk 0:01:34.7]} 14. Nxd4 {[%clk 0:00:45.6]} 14... Qxg5 {[%clk 0:01:32.2]}
15. Bxf7+ {[%clk 0:00:45.2]} 15... Kxf7 {[%clk 0:01:32.2]} 16. Qxc5 {[%clk
0:00:45.4]} 16... Re8 {[%clk 0:01:24.3]} 17. Qc4+ {[%clk 0:00:38.6]} 17... Kf8
{[%clk 0:01:20]} 18. f4 {[%clk 0:00:39.1]} 18... Qe7 {[%clk 0:01:15.9]} 19. Rae1
{[%clk 0:00:39]} 19... b6 {[%clk 0:00:40.6]} 20. f5 {[%clk 0:00:38.4]} 20... Qc5
{[%clk 0:00:38]} 21. Qd3 {[%clk 0:00:32.8]} 21... Ba6 {[%clk 0:00:36.5]} 22. Qe3
{[%clk 0:00:28.4]} 22... Bxf1 {[%clk 0:00:34.6]} 23. Kxf1 {[%clk 0:00:22.6]}
23... Kg8 {[%clk 0:00:31.5]} 24. f6 {[%clk 0:00:22.8]} 24... gxf6 {[%clk
0:00:26.8]} 25. Qg3+ {[%clk 0:00:20.8]} 25... Kh8 {[%clk 0:00:26.5]} 26. Nf5
{[%clk 0:00:20.5]} 26... Rg8 {[%clk 0:00:22.2]} 27. Qh4 {[%clk 0:00:20.5]} 27...
Raf8 {[%clk 0:00:18.9]} 28. Nh6 {[%clk 0:00:13.6]} 28... fxe5+ {[%clk
0:00:17.4]} 29. Ke2 {[%clk 0:00:13.3]} 29... Rg6 {[%clk 0:00:11]} 30. Rf1 {[%clk
0:00:11.7]} 30... Qb5+ {[%clk 0:00:09.1]} 31. Ke3 {[%clk 0:00:11.4]} 31... Qxf1
{[%clk 0:00:08.6]} 32. Qe7 {[%clk 0:00:11.1]} 32... Qf2+ {[%clk 0:00:07.9]} 33.
Ke4 {[%clk 0:00:07.5]} 33... Rxh6 {[%clk 0:00:08.8]} 34. Qxe5+ {[%clk
0:00:06.2]} 34... Qf6 {[%clk 0:00:08.9]} 0-1

[Event "*** Titled Tuesday Blitz"]
[Site "Chess.com"]
[Date "2021.03.02"]
[Round "6"]
[White "GianmarcoVaR"]
[Black "champ2005"]
[Result "0-1"]
[WhiteElo "2630"]
[BlackElo "2993"]
[TimeControl "180+1"]
[EndTime "11:07:17 PST"]
[Termination "champ2005 won by resignation"]

1. d4 {[%clk 0:03:00]} 1... Nf6 {[%clk 0:03:00.3]} 2. Nf3 {[%clk 0:03:00.7]}
2... g6 {[%clk 0:03:00.3]} 3. Bg5 {[%clk 0:03:01.1]} 3... Bg7 {[%clk 0:02:59]}
4. Nbd2 {[%clk 0:03:01.7]} 4... d5 {[%clk 0:02:56.6]} 5. e3 {[%clk 0:03:01.4]}
5... O-O {[%clk 0:02:57.2]} 6. Bh4 {[%clk 0:03:01.4]} 6... Bf5 {[%clk
0:02:53.6]} 7. Be2 {[%clk 0:02:54.5]} 7... Nbd7 {[%clk 0:02:53.4]} 8. b4 {[%clk
0:02:31.9]} 8... a5 {[%clk 0:02:50.7]} 9. b5 {[%clk 0:02:32.3]} 9... a4 {[%clk
0:02:39.5]} 10. O-O {[%clk 0:02:30.3]} 10... c6 {[%clk 0:02:39.4]} 11. bxc6
{[%clk 0:02:29.3]} 11... bxc6 {[%clk 0:02:40.3]} 12. c4 {[%clk 0:02:25.3]} 12...
Qa5 {[%clk 0:02:40.7]} 13. Qc1 {[%clk 0:02:20]} 13... Rfb8 {[%clk 0:02:33.1]}
14. Qa3 {[%clk 0:02:18.5]} 14... Bf8 {[%clk 0:02:32.2]} 15. Rfc1 {[%clk
0:02:11]} 15... e5 {[%clk 0:02:30]} 16. c5 {[%clk 0:02:09.3]} 16... e4 {[%clk
0:02:30.5]} 17. Nc4 {[%clk 0:01:42.7]} 17... dxc4 {[%clk 0:02:26]} 18. Ne5
{[%clk 0:01:28.4]} 18... Nxe5 {[%clk 0:02:22.8]} 19. Bxf6 {[%clk 0:01:26.9]}
19... Nd3 {[%clk 0:02:19.8]} 20. Rxc4 {[%clk 0:01:15.5]} 20... Qd2 {[%clk
0:02:20]} 21. Bxd3 {[%clk 0:01:07.1]} 21... exd3 {[%clk 0:02:20.9]} 22. d5
{[%clk 0:01:00.9]} 22... cxd5 {[%clk 0:02:12.1]} 23. Rcc1 {[%clk 0:00:55.7]}
23... Qb4 {[%clk 0:02:07]} 24. Qxb4 {[%clk 0:00:50]} 24... Rxb4 {[%clk
0:02:07.9]} 25. f3 {[%clk 0:00:46.1]} 25... Rc4 {[%clk 0:02:06.6]} 26. g4 {[%clk
0:00:42.7]} 26... Be6 {[%clk 0:02:04.7]} 27. Bd4 {[%clk 0:00:43.2]} 27... Bg7
{[%clk 0:02:00.6]} 28. Bxg7 {[%clk 0:00:39.3]} 28... Kxg7 {[%clk 0:02:01.5]} 29.
Rd1 {[%clk 0:00:39.6]} 29... d4 {[%clk 0:01:58.4]} 30. Rxd3 {[%clk 0:00:35.1]}
30... dxe3 {[%clk 0:01:58.5]} 31. Rxe3 {[%clk 0:00:35.6]} 31... Rxc5 {[%clk
0:01:58.8]} 32. Re2 {[%clk 0:00:32.7]} 32... Rac8 {[%clk 0:01:59.1]} 33. Kf2
{[%clk 0:00:32.8]} 33... Rc2 {[%clk 0:01:59.4]} 34. a3 {[%clk 0:00:27.1]} 34...
Rxe2+ {[%clk 0:01:58.1]} 35. Kxe2 {[%clk 0:00:27.6]} 35... Rc2+ {[%clk 0:01:59]}
36. Ke3 {[%clk 0:00:27.9]} 36... Rxh2 {[%clk 0:01:59.9]} 37. g5 {[%clk
0:00:25.7]} 37... Rb2 {[%clk 0:01:59.3]} 38. Kf4 {[%clk 0:00:26]} 38... Rb3
{[%clk 0:02:00.2]} 39. Kg3 {[%clk 0:00:25.4]} 39... Bd5 {[%clk 0:02:00.1]} 40.
Rc1 {[%clk 0:00:21.5]} 40... Rxf3+ {[%clk 0:01:59.7]} 41. Kg4 {[%clk 0:00:20.9]}
41... Rxa3 {[%clk 0:02:00.6]} 42. Rd1 {[%clk 0:00:20.2]} 42... Bf3+ {[%clk
0:02:00.5]} 43. Kh4 {[%clk 0:00:20.8]} 43... h6 {[%clk 0:01:57.3]} 44. Rg1
{[%clk 0:00:19.5]} 44... hxg5+ {[%clk 0:01:56.7]} 45. Kxg5 {[%clk 0:00:20.1]}
45... f6+ {[%clk 0:01:55.1]} 46. Kf4 {[%clk 0:00:19.4]} 46... g5+ {[%clk
0:01:54.1]} 47. Kf5 {[%clk 0:00:19]} 47... Bd5 {[%clk 0:01:52.9]} 48. Kg4 {[%clk
0:00:16.5]} 48... Kg6 {[%clk 0:01:49.3]} 49. Re1 {[%clk 0:00:14.4]} 49... Ra2
{[%clk 0:01:48.5]} 50. Rf1 {[%clk 0:00:12.4]} 50... Be6+ {[%clk 0:01:46.7]} 51.
Kg3 {[%clk 0:00:11.6]} 51... Ra3+ {[%clk 0:01:46.5]} 52. Kh2 {[%clk 0:00:10.5]}
52... Rh3+ {[%clk 0:01:46.6]} 53. Kg2 {[%clk 0:00:10.2]} 53... a3 {[%clk
0:01:46.7]} 54. Re1 {[%clk 0:00:09.3]} 54... Bf5 {[%clk 0:01:46.7]} 55. Ra1
{[%clk 0:00:08.3]} 55... Rb3 {[%clk 0:01:45.2]} 56. Kh2 {[%clk 0:00:08.1]} 56...
g4 {[%clk 0:01:45]} 57. Kg2 {[%clk 0:00:07.3]} 57... Be4+ {[%clk 0:01:45.1]} 58.
Kh2 {[%clk 0:00:05.3]} 58... Kg5 {[%clk 0:01:44.7]} 59. Ra2 {[%clk 0:00:04.3]}
59... Rb2+ {[%clk 0:01:44.2]} 60. Kg3 {[%clk 0:00:04.9]} 60... Rg2+ {[%clk
0:01:40.1]} 61. Rxg2 {[%clk 0:00:03.5]} 61... Bxg2 {[%clk 0:01:41]} 62. Kf2
{[%clk 0:00:01.8]} 62... a2 {[%clk 0:01:41.3]} 63. Kg3 {[%clk 0:00:02.3]} 63...
a1=Q {[%clk 0:01:41.4]} 64. Kh2 {[%clk 0:00:02.9]} 64... Qh1+ {[%clk 0:01:40.7]}
65. Kg3 {[%clk 0:00:03.1]} 65... Qh3+ {[%clk 0:01:41.3]} 66. Kf2 {[%clk
0:00:03.1]} 66... g3+ {[%clk 0:01:40.3]} 67. Ke3 {[%clk 0:00:03.2]} 67... Ba8
{[%clk 0:01:40.1]} 68. Ke2 {[%clk 0:00:02.7]} 68... g2 {[%clk 0:01:40.1]} 69.
Kf2 {[%clk 0:00:03.2]} 69... Qf3+ {[%clk 0:01:39.9]} 70. Kg1 {[%clk 0:00:03.4]}
70... Qf1+ {[%clk 0:01:39.6]} 0-1